bitfinex/quotes_ETHUSD_20220112
["timestamp","ask_amount","ask_price","bid_price","bid_amount"]
[1642009807258,0.00170527,3377.4,3376.9,1.29048733]
[1642009807657,0.00113685,3377.3,3376.9,1.29048733]
[1642009807857,0.00113685,3377.3,3377.1,1.47999]
[1642009808059,0.74001,3378.0,3377.1,1.47999]
[1642009808259,0.6,3377.9,3377.6,1.23286488]
[1642009808459,0.60454739,3377.9,3377.6,1.23286488]
[1642009808698,0.00397896,3377.8,3377.6,1.23286488]
[1642009809102,0.00341054,3377.7,3377.6,1.23286488]
[1642009809302,0.00341054,3377.7,3377.6,1.97286488]
[1642009809502,0.00341054,3377.7,3377.6,0.74]
[1642009809702,0.00341054,3377.7,3377.6,0.2741614]
[1642009810502,0.00341054,3377.7,3377.6,3.2741614]
[1642009815463,0.00341054,3377.7,3377.6,3.0]
[1642009815662,2.65341054,3377.7,3377.6,3.0]
[1642009816505,2.95341054,3377.7,3377.6,3.0]
[1642009817707,2.95341054,3377.7,3376.9,1.48028]
[1642009817708,7.1,3377.6,3376.9,1.48028]
[1642009817911,7.529,3377.6,3376.4,0.74007]
[1642009818109,0.00227369,3377.5,3376.5,0.1184]
[1642009818308,0.00227369,3377.5,3376.5,0.00341054]
[1642009818511,0.00227369,3377.5,3376.6,0.1184]
[1642009818709,0.00227369,3377.5,3377.1,1.48016]
[1642009820058,0.00227369,3377.5,3377.2,0.1184]
[1642009820462,0.00227369,3377.5,3377.4,1.24225753]
[1642009821458,0.00227369,3377.5,3377.4,4.24225753]
[1642009821658,0.00227369,3377.5,3377.4,6.56042373]
[1642009822059,3.02680747,3377.9,3377.6,0.5918512]
[1642009822258,3.02680747,3377.9,3377.4,6.56042373]
[1642009822459,0.00170527,3377.8,3377.6,0.73983]
[1642009822659,0.00170527,3377.8,3377.7,0.1184]
[1642009822859,3.02680747,3377.9,3377.7,2.41867386]
[1642009823258,0.1184,3378.1,3377.7,2.41867386]
[1642009823259,2.27065476,3378.0,3377.7,3.01048336]
[1642009823705,3.02680747,3378.3,3377.8,1.03977]
[1642009823905,0.39422862,3378.6,3378.0,0.73964]
[1642009824107,0.39422862,3378.6,3378.2,2.95]
[1642009824305,0.39422862,3378.6,3378.3,0.1183]
[1642009824503,0.39422862,3378.6,3378.4,5.45]
[1642009824705,0.39422862,3378.6,3378.5,5.04666453]
[1642009824903,3.78350934,3378.8,3378.5,4.92836453]
[1642009825105,0.39422862,3379.0,3378.6,0.1183]
[1642009825311,0.00113684,3378.7,3378.6,1.7099466]
[1642009825508,0.39422862,3379.0,3378.7,6.8]
[1642009825711,0.00113685,3378.9,3378.8,5.8683]
[1642009825908,0.39422862,3379.0,3378.9,4.2]
[1642009826108,1.8229102,3379.6,3379.1,6.8]
[1642009826311,1.8229102,3379.6,3379.5,15.002]
[1642009826508,5.09499742,3379.9,3379.5,15.9098]
[1642009826710,5.09499742,3379.9,3379.5,16.2026]
[1642009826711,0.0433641,3379.9,3379.5,16.2026]
[1642009826909,0.00511581,3379.8,3379.5,16.2026]
[1642009827362,0.00454739,3379.7,3379.6,4.75893563]
[1642009827655,0.50763933,3379.8,3379.6,6.23761563]
[1642009828261,0.50763933,3379.8,3379.6,8.65253644]
[1642009828659,0.0433641,3379.9,3379.6,6.23761563]
[1642009828860,0.0433641,3379.9,3379.7,0.1183]
[1642009829160,8.0837,3380.8,3379.8,7.53933]
[1642009829161,0.1183,3380.8,3379.8,7.53933]
[1642009829364,1.4786659,3381.6,3379.8,7.53933]
[1642009829365,3.6907,3381.2,3379.9,10.39678092]
[1642009829564,3.6907,3381.2,3380.4,1.0]
[1642009829862,5.05163332,3381.5,3380.6,1.0]
[1642009830060,5.05163332,3381.5,3380.9,0.5911884]
[1642009830361,5.05163332,3381.5,3381.1,2.6]
[1642009830562,0.00170527,3381.4,3381.2,1.59611]
[1642009830763,0.00170527,3381.4,3381.2,2.59611]
[1642009830961,0.00113684,3381.3,3381.2,2.59611]
[1642009831655,0.00113684,3381.3,3381.2,1.59611]
[1642009831912,0.00113684,3381.3,3380.7,0.73928]
[1642009832311,0.00113684,3381.3,3380.8,0.00170527]
[1642009832515,3.7272,3381.9,3380.9,6.8]
[1642009832710,3.7272,3381.9,3380.9,7.53895]
[1642009832915,0.51027254,3381.8,3381.0,0.00170527]
[1642009833112,0.51027254,3381.8,3381.1,2.7261254]
[1642009833314,0.0022737,3381.7,3381.1,2.7261254]
[1642009833711,0.00170527,3381.6,3381.4,0.73893]
[1642009833911,0.00170527,3381.6,3381.3,1.47786]
[1642009834111,0.00113685,3381.5,3381.3,1.47786]
[1642009834513,0.0022737,3381.7,3381.3,1.47786]
[1642009834972,0.00170527,3381.6,3381.3,1.47786]
[1642009835365,0.00113685,3381.5,3381.3,1.47786]
[1642009836664,0.00113685,3381.5,3381.4,2.41336248]
[1642009836866,0.00113685,3381.5,3381.3,1.47786]
[1642009837065,0.00113685,3381.5,3381.3,3.89453246]
[1642009837865,0.00113685,3381.5,3381.4,9.20012771]
[1642009838070,3.7272,3381.9,3381.5,4.4]
[1642009838268,3.7272,3381.9,3381.6,4.04461349]
[1642009838471,4.07819997,3382.6,3381.6,4.04461349]
[1642009838472,0.00170527,3381.8,3381.6,4.04461349]
[1642009838711,0.00170527,3381.8,3381.6,1.4778]
[1642009838908,0.00113685,3381.7,3381.6,1.4778]
[1642009839311,0.00113685,3381.7,3381.5,1.47802]
[1642009841315,0.00113685,3381.7,3381.5,4.47802]
[1642009842681,0.00113685,3381.7,3381.6,3.35]
[1642009843083,0.00113685,3381.7,3381.5,4.47802]
[1642009843282,0.00113685,3381.7,3381.5,3.0]
[1642009845685,1.54509824,3382.3,3381.5,3.0]
[1642009845686,0.01933685,3382.5,3381.5,3.0]
[1642009845886,0.3,3382.3,3381.5,3.0]
[1642009846101,0.00284212,3382.2,3381.8,0.73904]
[1642009846303,0.51021583,3382.2,3381.8,0.73904]
[1642009846500,0.00227369,3382.1,3381.9,1.39910618]
[1642009846903,0.00170527,3382.0,3381.9,1.39910618]
[1642009847103,0.00170527,3382.0,3381.5,3.1182]
[1642009847500,1.51529803,3382.2,3381.5,3.1182]
[1642009847699,0.40851056,3381.9,3381.6,0.00170527]
[1642009848908,0.00113684,3382.1,3381.6,0.00170527]
[1642009851150,0.00113684,3382.1,3381.6,0.74078527]
[1642009851551,0.00113684,3382.1,3381.7,0.00113685]
[1642009852649,0.00113684,3382.1,3381.6,0.00170528]
[1642009853705,0.00113684,3382.1,3381.6,0.74078528]
[1642009853909,0.00113684,3382.1,3381.9,1.50016712]
[1642009855006,0.00113684,3382.1,3381.9,0.73901]
[1642009855206,3.15,3382.0,3381.7,0.00113685]
[1642009855607,3.15,3382.0,3381.6,0.00170528]
[1642009855806,0.00113684,3382.1,3381.6,0.00170528]
[1642009856809,1.52328392,3382.1,3381.6,0.00170528]
[1642009857671,0.00113684,3382.1,3381.8,0.73909]
[1642009858674,0.00113684,3382.1,3381.6,0.00170528]
[1642009858675,1.54752458,3382.1,3381.6,0.00170528]
[1642009859276,0.00113684,3382.1,3381.6,0.74082528]
[1642009859677,0.00113684,3382.1,3381.7,0.00113685]
[1642009860081,0.00113684,3382.1,3381.7,2.55632044]
[1642009860584,1.54961827,3382.1,3381.7,2.55632044]
[1642009861201,3.02793097,3382.1,3381.7,2.55632044]
[1642009861800,1.54961827,3382.1,3381.7,2.55632044]
[1642009862004,0.00113684,3382.1,3381.8,3.29417714]
[1642009866159,0.00113684,3382.1,3382.0,7.38893]
[1642009866361,3.6809,3383.3,3382.1,6.8]
[1642009866558,4.63014826,3383.6,3382.3,6.8]
[1642009866758,0.84541899,3383.5,3382.5,2.55230486]
[1642009866958,0.84541899,3383.5,3382.9,1.3293668]
[1642009867164,0.85110322,3383.5,3383.1,1.17510457]
[1642009868163,0.00568423,3383.5,3383.1,1.17510457]
[1642009868460,0.00568423,3383.5,3383.3,0.73866]
[1642009868709,0.00568423,3383.5,3383.3,3.29036067]
[1642009870912,0.00568423,3383.5,3383.3,3.40856067]
[1642009871715,3.847,3384.0,3383.4,6.3]
[1642009871914,3.847,3384.0,3383.7,3.28981555]
[1642009872116,3.847,3384.0,3383.8,0.1182]
[1642009872117,0.00227369,3383.9,3383.8,0.1182]
[1642009872554,0.50933057,3383.9,3383.8,0.1182]
[1642009872753,0.3,3384.3,3383.8,2.93548899]
[1642009873056,4.53121899,3384.5,3383.8,2.00713524]
[1642009873057,0.00170527,3384.2,3383.8,2.00713524]
[1642009873463,0.00113685,3384.1,3383.8,2.00713524]
[1642009873864,0.00284212,3384.4,3383.8,2.00713524]
[1642009874063,0.00284212,3384.4,3383.8,2.12523524]
[1642009874264,0.0022737,3384.3,3383.8,2.12523524]
[1642009874665,4.4244082,3384.5,3383.8,2.12523524]
[1642009874666,0.00284212,3384.4,3383.8,2.12523524]
[1642009875062,0.0022737,3384.3,3383.8,2.12523524]
[1642009875566,0.00284212,3384.4,3383.8,2.12523524]
[1642009875963,0.0022737,3384.3,3383.8,2.12523524]
[1642009876404,0.00284212,3384.4,3383.8,2.12523524]
[1642009876808,3.6858,3384.5,3383.8,2.12523524]
[1642009876809,0.0022737,3384.3,3383.8,2.12523524]
[1642009877308,3.6858,3384.5,3383.9,0.03734634]
[1642009877309,3.63864212,3384.5,3383.9,0.03734634]
[1642009877508,3.63864212,3384.5,3384.1,0.73855]
[1642009877904,3.63864212,3384.5,3384.2,0.00113685]
[1642009878308,3.63864212,3384.5,3384.1,0.00170527]
[1642009878709,3.63864212,3384.5,3384.1,0.1181]
[1642009879007,3.63864212,3384.5,3384.3,0.73855]
[1642009879208,2.06915706,3384.6,3384.2,1.47812685]
[1642009879408,2.06915706,3384.6,3384.0,0.03247522]
[1642009879409,3.04679346,3384.5,3384.0,0.03247522]
[1642009879610,1.1181,3384.4,3384.0,0.03247522]
[1642009879865,1.1181,3384.4,3382.8,0.1181]
[1642009879866,6.81237332,3384.1,3382.8,0.1181]
[1642009880060,6.81237332,3384.1,3382.5,0.13819997]
[1642009880061,2.76077272,3384.0,3383.1,0.73882]
[1642009880258,1.47763,3383.9,3383.1,0.73882]
[1642009880461,0.429,3383.9,3383.1,0.85702]
[1642009880865,1.18939781,3383.8,3383.2,1.15057071]
[1642009881067,1.18939781,3383.8,3383.5,0.73865]
[1642009881264,1.18939781,3383.8,3383.6,1.09096629]
[1642009881466,1.18939781,3383.8,3383.6,1.09437683]
[1642009881666,1.18939781,3383.8,3383.4,1.4773]
[1642009881667,1.18939781,3383.8,3383.7,0.00284211]
[1642009882066,1.18939781,3383.8,3383.5,0.00397896]
[1642009882466,1.18939781,3383.8,3383.3,0.73872]
[1642009882669,1.18939781,3383.8,3383.5,3.0]
[1642009883067,1.18939781,3383.8,3383.6,1.26178789]
[1642009883468,1.18939781,3383.8,3383.7,0.00284211]
[1642009883910,1.15838194,3383.8,3383.7,0.00284211]
[1642009884408,1.45838194,3383.8,3383.7,0.00284211]
[1642009885211,1.47748,3384.0,3383.7,0.00284211]
[1642009885410,3.8552153,3384.9,3383.7,1.48009211]
[1642009885411,3.91110528,3384.5,3383.7,1.48009211]
[1642009885608,8.68901584,3385.1,3383.9,6.8]
[1642009885609,11.95641584,3385.1,3383.9,6.8]
[1642009885810,11.95641584,3385.1,3384.5,0.73843]
[1642009886010,11.95641584,3385.1,3384.5,1.51623]
[1642009886011,0.00170527,3384.8,3384.5,1.51623]
[1642009886312,0.00113684,3384.7,3384.6,1.15897163]
[1642009887210,0.00113684,3384.7,3384.4,1.47685]
[1642009887659,0.00113684,3384.7,3384.0,0.00284212]
[1642009887660,1.50223109,3384.5,3384.0,0.00284212]
[1642009887856,1.50223109,3384.5,3384.3,0.73855]
[1642009888053,1.80223109,3384.5,3384.3,0.73855]
[1642009889258,1.80223109,3384.5,3384.1,1.47704]
[1642009889460,1.80223109,3384.5,3383.8,0.00397897]
[1642009889657,1.80223109,3384.5,3384.2,0.00170528]
[1642009889861,1.80223109,3384.5,3383.4,0.00625266]
[1642009890159,1.80223109,3384.5,3383.6,1.47726]
[1642009890559,0.73868,3384.3,3383.7,0.00454739]
[1642009890865,0.00113684,3384.7,3383.8,0.73859]
[1642009891121,0.00113684,3384.7,3383.7,0.00454739]
[1642009891122,0.00113684,3384.7,3383.9,0.1181]
[1642009891318,0.00113684,3384.7,3383.9,0.00341055]
[1642009891518,0.00113684,3384.7,3384.0,0.12094212]
[1642009891717,0.01280262,3384.6,3383.9,0.00341055]
[1642009891920,0.01280262,3384.6,3384.1,0.0022737]
[1642009891921,0.7387004,3384.3,3384.1,0.0022737]
[1642009892117,1.0387004,3384.3,3383.7,3.0]
[1642009892317,1.0387004,3384.3,3383.7,3.73869]
[1642009892517,1.83470103,3384.6,3383.8,0.00397897]
[1642009892717,0.73864,3384.4,3383.8,0.00397897]
[1642009892922,1.33282417,3383.9,3383.8,0.00397897]
[1642009894118,0.429,3384.5,3383.8,0.00397897]
[1642009894319,2.31546868,3384.7,3383.8,0.00397897]
[1642009894320,0.00113684,3384.7,3383.9,1.47711]
[1642009894520,2.20118451,3384.7,3383.9,1.47711]
[1642009894722,2.20118451,3384.7,3384.0,0.00284212]
[1642009894985,0.429,3384.6,3384.0,0.00284212]
[1642009895175,0.7386734,3384.3,3383.8,0.00397897]
[1642009895381,1.20584199,3384.4,3384.1,0.0022737]
[1642009895576,1.20584199,3384.4,3383.9,0.73864]
[1642009895974,1.20584199,3384.4,3384.0,0.00284212]
[1642009896174,2.13997646,3384.3,3384.0,0.00284212]
[1642009896379,0.429,3384.2,3383.8,0.00397897]
[1642009896578,0.5472,3384.2,3383.8,0.00397897]
[1642009896778,0.5472,3384.2,3383.8,0.74264897]
[1642009896978,0.5472,3384.2,3383.8,0.00397897]
[1642009897179,0.5472,3384.2,3383.9,0.00341055]
[1642009897382,0.5472,3384.2,3383.7,3.0]
[1642009897383,0.50701001,3384.3,3383.8,0.12217897]
[1642009897583,1.09563205,3384.1,3383.8,0.12217897]
[1642009897783,0.50701001,3384.3,3383.9,0.74207055]
[1642009897984,0.77157388,3384.6,3383.9,0.74207055]
[1642009898185,0.77157388,3384.6,3384.0,0.00284212]
[1642009898808,0.77157388,3384.6,3384.2,1.47706]
[1642009899209,0.77157388,3384.6,3384.4,0.73855]
[1642009899409,0.50692882,3384.5,3384.4,0.73855]
[1642009900412,0.50692882,3384.5,3384.3,0.00113685]
[1642009900613,1.24556882,3384.5,3384.3,0.00113685]
[1642009901011,0.50692882,3384.5,3384.1,0.0022737]
[1642009901513,0.50692882,3384.5,3384.1,1.1805199]
[1642009901712,0.50692882,3384.5,3384.3,0.73857]
[1642009901912,0.50692882,3384.5,3384.3,1.45597]
[1642009902112,0.77157388,3384.6,3384.3,1.45597]
[1642009902961,0.77157388,3384.6,3384.3,4.45597]
[1642009905364,0.72396253,3384.8,3384.3,4.45597]
[1642009905662,0.72396253,3384.8,3384.5,0.73854]
[1642009906400,0.50693916,3384.7,3384.5,0.73854]
[1642009907702,0.49906726,3384.7,3384.5,0.73854]
[1642009909006,0.72396253,3384.8,3384.5,0.73854]
[1642009909207,0.72396253,3384.8,3384.6,0.00867467]
[1642009909706,0.72396253,3384.8,3384.5,0.73854]
[1642009911357,1.46250703,3384.8,3384.5,0.73854]
[1642009912757,1.41250703,3384.8,3384.5,0.73854]
[1642009914022,1.41250703,3384.8,3384.4,0.00170528]
[1642009914225,0.7386,3384.7,3384.4,0.00170528]
[1642009914423,0.7385704,3384.6,3384.4,0.00170528]
[1642009915323,0.7385704,3384.6,3384.3,2.39267794]
[1642009915324,7.5181,3384.5,3384.3,2.39267794]
[1642009915527,7.5181,3384.5,3382.8,0.73864]
[1642009915528,0.73875,3384.0,3382.8,1.1601]
[1642009915725,0.7387928,3383.5,3382.7,0.88685226]
[1642009915924,0.429,3384.0,3382.7,0.88685226]
[1642009915925,2.34643668,3383.9,3382.9,0.00852634]
[1642009916130,0.429,3384.0,3383.0,0.1182]
[1642009916328,1.477572,3383.9,3383.0,0.1182]
[1642009916526,1.53315744,3383.7,3383.2,1.47747]
[1642009916928,0.7387996,3383.5,3383.3,0.00625265]
[1642009917778,2.23107737,3383.6,3383.3,0.00625265]
[1642009917976,2.66335744,3383.7,3383.3,0.00625265]
[1642009917977,1.53315744,3383.7,3383.3,0.00625265]
[1642009918177,1.53315744,3383.7,3383.2,0.00682107]
[1642009918378,2.14359888,3383.6,3383.2,0.00682107]
[1642009918579,2.14359888,3383.6,3383.3,0.7388]
[1642009918980,2.14359888,3383.6,3383.4,0.00568422]
[1642009919580,2.1388451,3383.6,3383.2,0.00682107]
[1642009919780,0.7387841,3383.5,3383.2,0.00682107]
[1642009920082,0.7387841,3383.5,3383.3,0.73878]
[1642009920284,3.02932942,3384.0,3383.3,0.73878]
[1642009920485,3.02932942,3384.0,3383.5,0.00574106]
[1642009920682,3.02932942,3384.0,3383.6,1.59538]
[1642009920882,3.02932942,3384.0,3383.7,0.73859]
[1642009921108,3.02932942,3384.0,3383.8,0.1182]
[1642009921308,1.548909,3384.0,3383.8,0.12161053]
[1642009921503,1.548909,3384.0,3383.9,0.00284211]
[1642009921803,1.548909,3384.0,3383.4,0.00568422]
[1642009922002,1.548909,3384.0,3383.8,1.47716]
[1642009922407,7.31992942,3384.3,3383.9,0.00284211]
[1642009922608,6.07782942,3384.3,3384.1,0.73861]
[1642009922807,3.02932942,3384.4,3384.1,0.73861]
[1642009923006,0.7386507,3384.3,3384.2,0.00113684]
[1642009923409,2.27270097,3384.3,3384.2,0.00113684]
[1642009925561,4.77270097,3384.3,3384.2,0.00113684]
[1642009926061,4.77270097,3384.3,3383.8,4.47716]
[1642009926062,0.7386789,3384.2,3383.9,0.00284211]
[1642009926261,5.37273027,3384.3,3383.9,0.00284211]
[1642009926262,1.53405027,3384.3,3383.9,0.00284211]
[1642009926861,3.01144437,3384.3,3383.9,0.74152211]
[1642009927062,0.7386557,3384.2,3383.9,0.00284211]
[1642009927263,4.06798512,3384.2,3384.0,0.00227368]
[1642009927461,4.06798512,3384.2,3383.9,0.00284211]
[1642009928066,6.8,3383.9,3383.2,1.47754]
[1642009928267,6.8,3383.9,3382.1,10.22739]
[1642009928268,0.7389315,3383.2,3382.3,3.46837213]
[1642009928464,0.429,3383.1,3382.3,3.35017213]
[1642009928714,1.029,3383.1,3382.3,3.35017213]
[1642009929119,1.029,3383.1,3382.2,0.1182]
[1642009929314,0.7389319,3382.9,3382.4,1.48004399]
[1642009929521,1.029,3383.1,3382.4,1.48004399]
[1642009929522,0.429,3383.1,3382.6,0.73896]
[1642009929913,0.429,3383.1,3382.7,0.00682108]
[1642009930414,0.429,3383.1,3382.6,0.0073895]
[1642009930615,1.3986821,3382.9,3382.7,0.73889]
[1642009931015,1.3986821,3382.9,3382.8,0.00625265]
[1642009931614,0.73891,3383.0,3382.8,0.00625265]
[1642009931816,0.73891,3383.0,3382.8,0.74515265]
[1642009932214,0.73891,3383.0,3382.9,0.00568423]
[1642009932658,1.24601689,3383.0,3382.9,0.00568423]
[1642009933661,0.50710689,3383.0,3382.9,0.00568423]
[1642009935061,0.50710689,3383.0,3382.9,1.48332423]
[1642009935263,0.50710689,3383.3,3382.9,1.48332423]
[1642009935661,0.50710689,3383.3,3383.1,0.7388]
[1642009936147,0.50710689,3383.3,3383.2,0.00397896]
[1642009936541,0.50710689,3383.4,3383.2,0.00397896]
[1642009936739,0.80710689,3383.4,3383.3,0.73878]
[1642009937142,0.80710689,3383.4,3383.3,0.74219054]
[1642009937739,0.50710689,3383.4,3383.3,0.74219054]
[1642009939345,0.50710689,3383.5,3383.3,0.74219054]
[1642009939749,0.50710689,3383.5,3383.4,0.00284211]
[1642009940557,0.50710689,3383.7,3383.4,0.00284211]
[1642009940758,0.50710689,3383.7,3383.5,0.73874]
[1642009940959,1.24585689,3383.7,3383.5,0.73874]
[1642009941158,1.24585689,3383.7,3383.6,0.00170527]
[1642009942462,4.21948668,3384.1,3383.8,0.00643129]
[1642009942463,4.10128668,3384.1,3383.8,0.00643129]
[1642009942662,3.32953945,3384.1,3383.9,0.85666]
[1642009943061,0.85714826,3384.6,3384.0,6.8]
[1642009943265,0.85714826,3384.6,3384.1,0.1181]
[1642009943617,0.85714826,3384.6,3384.5,1.84617334]
[1642009943812,0.85714826,3384.6,3384.5,1.96427334]
[1642009944011,0.00284212,3384.6,3384.5,1.96427334]
[1642009945011,0.00284212,3384.6,3384.5,0.85648]
[1642009945212,0.00284212,3384.6,3384.5,0.73838]
[1642009950266,0.00284212,3384.6,3384.5,2.56897734]
[1642009950468,0.00284212,3384.6,3384.5,2.51897734]
[1642009951810,0.00284212,3384.6,3384.5,1.78059734]
[1642009953410,0.00284212,3384.6,3384.5,1.52363553]
[1642009953610,0.00284212,3384.6,3384.5,4.52363553]
[1642009954015,0.00284212,3384.6,3384.5,3.45513553]
[1642009954861,0.00284212,3384.6,3384.5,3.0]
[1642009957967,0.00284212,3384.6,3384.5,3.1181]
[1642009959213,0.00284212,3384.6,3384.5,4.33246038]
[1642009960713,0.20284212,3384.9,3384.6,0.73848]
[1642009960912,2.28727062,3385.2,3384.6,0.73848]
[1642009961114,0.00113685,3384.8,3384.7,0.1181]
[1642009963260,0.50798411,3384.8,3384.7,0.1181]
[1642009963665,0.50798411,3384.8,3384.7,2.53413837]
[1642009963866,0.50798411,3384.8,3384.7,0.1181]
[1642009964766,0.50798411,3384.8,3384.7,1.1181]
[1642009964965,0.50798411,3384.8,3384.7,0.1181]
[1642009968717,0.00113685,3384.8,3384.7,0.1181]
[1642009971169,0.00113685,3384.8,3384.6,0.73848]
[1642009977760,3.02292111,3385.6,3384.7,0.12567947]
[1642009977960,2.97292111,3385.6,3385.1,0.73829]
[1642009978162,0.51074709,3385.5,3385.1,0.73829]
[1642009978559,0.51074709,3385.5,3385.1,1.91343911]
[1642009978560,0.00341054,3385.4,3385.1,1.91343911]
[1642009978964,0.00284211,3385.3,3385.1,1.91343911]
[1642009979368,0.50904182,3385.2,3385.1,1.91343911]
[1642009979968,0.50904182,3385.2,3385.1,0.73829]
[1642009981826,0.50904182,3385.2,3385.1,2.01409602]
[1642009983225,0.00227369,3385.2,3385.1,2.01409602]
[1642009984630,0.50906993,3385.2,3385.1,1.56174386]
[1642009987482,0.50906993,3385.2,3385.1,0.28593784]
[1642009988938,2.77924906,3385.2,3385.1,0.28593784]
[1642009989133,2.72924906,3385.2,3385.1,0.28593784]
[1642009989636,2.72924906,3385.2,3384.7,1.4769]
[1642009989637,6.8,3385.1,3384.7,1.4769]
[1642009989838,6.8,3385.1,3384.6,0.1181]
[1642009989845,4.2418591,3385.0,3384.6,0.1181]
[1642009990038,4.2418591,3385.0,3383.4,3.9139]
[1642009990039,8.1,3384.9,3384.8,0.00227369]
[1642009990240,10.4357443,3384.9,3384.8,0.00227369]
[1642009990435,1.3,3384.9,3384.6,0.00341054]
[1642009990636,19.1373086,3384.9,3384.6,0.00341054]
[1642009990838,23.16219632,3384.9,3384.6,0.00341054]
[1642009991735,0.73863,3384.8,3384.6,0.00341054]
[1642009991936,1.03863,3384.8,3384.6,0.00341054]
[1642009992364,5.14520269,3384.7,3384.6,0.00341054]
[1642009992563,3.77420269,3384.7,3384.6,0.00341054]
[1642009992765,4.22091289,3384.7,3384.6,0.00341054]
[1642009992964,5.22091289,3384.7,3384.6,0.00341054]
[1642009993163,8.24580061,3384.7,3384.6,0.00341054]
[1642009993368,9.58590014,3384.7,3384.6,0.00341054]
[1642009993568,9.70400014,3384.7,3384.6,0.00341054]
[1642009995270,9.70400014,3384.7,3383.7,1.47729]
[1642009995271,6.8,3384.6,3383.7,1.47729]
[1642009995468,6.8,3384.6,3383.5,0.1181]
[1642009995469,0.73877,3384.3,3383.5,0.1181]
[1642009995669,0.73877,3384.3,3383.8,0.00454739]
[1642009995670,0.429,3384.3,3383.8,0.00454739]
[1642009995873,2.44514696,3384.2,3383.8,0.00454739]
[1642009996160,1.13280362,3384.0,3383.8,0.00454739]
[1642009996346,1.73222227,3383.9,3383.8,0.00454739]
[1642009996544,1.91402227,3383.9,3383.8,0.00454739]
[1642009996742,19.27402227,3383.9,3383.8,0.00454739]
[1642009996942,19.27402227,3383.9,3383.2,0.00795793]
[1642009997145,0.7388632,3383.5,3383.2,0.00795793]
[1642009997346,1.11690516,3383.4,3383.2,0.00795793]
[1642009997544,2.2661339,3383.5,3383.2,0.00795793]
[1642009997744,3.61301162,3383.7,3383.2,0.74676793]
[1642009997943,3.61301162,3383.7,3383.3,0.1182]
[1642009997944,1.77773,3383.7,3383.3,0.1182]
[1642009998144,0.3,3383.7,3383.3,0.12558951]
[1642009998349,0.3,3383.7,3383.0,0.25]
[1642009998350,0.73871,3384.0,3383.4,0.00682108]
[1642009998548,3.30066724,3384.1,3383.7,1.3669372]
[1642009998751,3.30066724,3384.1,3383.9,0.73859]
[1642009999054,3.02805796,3384.1,3384.0,0.00341054]
[1642009999253,3.30066724,3384.3,3384.0,0.00341054]
[1642009999896,3.30066724,3384.3,3384.1,0.73863]
[1642010000298,3.30066724,3384.3,3384.2,0.0022737]
[1642010000501,3.02805796,3384.3,3384.2,0.0022737]
[1642010000701,0.84487495,3384.5,3384.2,0.0022737]
[1642010000902,1.14487495,3384.5,3384.4,1.18037338]
[1642010001102,0.84487495,3384.5,3384.4,1.18037338]
[1642010001303,0.84487495,3384.7,3384.4,1.18151023]
[1642010001703,0.7386,3384.5,3384.4,0.00113685]
[1642010002700,3.30066724,3384.8,3384.0,1.47711]
[1642010002701,0.14785449,3384.1,3384.0,1.47711]
[1642010002901,0.14785449,3384.1,3384.0,3.02408441]
[1642010003101,0.14785449,3384.1,3384.0,3.0263581]
[1642010003725,2.40170527,3384.7,3384.0,3.0263581]
[1642010003928,2.40170527,3384.7,3384.1,0.1181]
[1642010004126,0.00113685,3384.6,3384.1,0.11980527]
[1642010004327,0.00113685,3384.6,3384.2,0.00113685]
[1642010004527,0.00113685,3384.6,3384.4,0.73856]
[1642010004925,0.00113685,3384.6,3384.2,0.00113685]
[1642010005928,0.7386132,3384.5,3384.2,0.00113685]
[1642010006131,0.3,3384.4,3384.2,0.00113685]
[1642010006932,2.07739,3384.4,3384.2,0.00113685]
[1642010007130,2.07739,3384.4,3383.9,0.73866]
[1642010007378,0.7386763,3384.2,3383.9,0.73866]
[1642010008382,0.73868,3384.3,3383.9,0.73866]
[1642010009986,1.4773219,3384.3,3383.9,0.73866]
[1642010010185,0.50690862,3384.2,3383.9,0.73866]
[1642010011528,0.7386746,3384.2,3383.9,0.73866]
[1642010012434,0.73868,3384.1,3383.8,1.51282019]
[1642010012632,0.73868,3384.1,3383.9,0.73867]
[1642010012833,0.50690862,3384.0,3383.9,0.74151212]
[1642010014135,0.50690862,3384.0,3383.9,0.00284212]
[1642010015277,0.7387559,3383.9,3383.6,0.00454739]
[1642010015480,1.4775259,3383.9,3383.6,0.00454739]
[1642010015677,0.3,3383.8,3383.6,0.00454739]
[1642010016678,2.85045233,3383.9,3383.6,0.00454739]
[1642010017287,1.6,3383.8,3383.6,0.00454739]
[1642010017481,9.32449314,3383.7,3383.6,0.00454739]
[1642010017681,9.32449314,3383.7,3383.0,0.25]
[1642010017682,10.75349314,3383.7,3383.2,0.00682108]
[1642010017882,0.73893,3383.4,3383.1,0.0073895]
[1642010018083,2.50432289,3383.3,3383.1,0.0073895]
[1642010018739,1.81246914,3383.4,3383.1,0.0073895]
[1642010018941,1.51246914,3383.4,3383.1,0.0073895]
[1642010019636,2.1917351,3383.3,3383.1,0.0073895]
[1642010020037,22.56706066,3383.2,3383.1,0.0073895]
[1642010021047,22.83966994,3383.2,3383.1,0.0073895]
[1642010021439,18.13966994,3383.2,3383.1,0.0073895]
[1642010022881,17.63260928,3383.2,3383.1,0.0073895]
[1642010030380,17.63260928,3383.2,3382.2,1.61612997]
[1642010030381,0.05015971,3382.9,3381.4,1.0]
[1642010030584,0.05015971,3382.9,3382.0,0.1182]
[1642010030585,0.01000511,3382.2,3382.0,0.1182]
[1642010030783,0.01000511,3382.2,3382.0,0.00625266]
[1642010030784,1.80667,3382.2,3382.0,0.00625266]
[1642010030983,3.379,3382.1,3382.0,0.00625266]
[1642010031282,3.379,3382.1,3381.5,0.1182]
[1642010031283,0.729,3382.1,3381.6,0.00852636]
[1642010031682,1.43277903,3381.7,3381.6,0.00852636]
[1642010033644,1.43277903,3381.7,3381.3,0.00170527]
[1642010033645,0.73937,3381.5,3381.3,0.00170527]
[1642010033838,0.7393171,3381.4,3381.3,0.00170527]
[1642010034037,1.3393171,3381.4,3380.9,0.7393]
[1642010034237,0.6,3381.4,3380.9,0.1183]
[1642010034437,0.6,3381.4,3381.0,0.00341054]
[1642010034638,1.029,3381.5,3381.0,0.00341054]
[1642010034844,8.76315801,3381.4,3381.0,0.00341054]
[1642010035041,0.6,3381.2,3381.0,0.00341054]
[1642010035340,24.7073,3381.1,3381.0,0.00341054]
[1642010035541,24.16,3381.0,3379.8,1.49416794]
[1642010035739,0.5473,3380.9,3379.8,1.49416794]
[1642010035941,0.5473,3380.9,3380.3,0.00397896]
[1642010036141,1.4790424,3380.7,3380.3,0.00397896]